{"text_format":"1","workbook":"xlsx","n_sheets":2,"sheets":["Ark1","Ark2"],"not_rendered":{"charts":0,"images":0,"macros":0,"external_links":1,"defined_names":0,"comments":1,"pivot_tables":0},"unopened":[],"bounds":{"document_bytes":16777216,"sheet_cells":100000,"rows_first":2000,"rows_last":500,"rows_between":2000,"halvings":0,"cell_chars":16384,"cell_head_chars":4096},"cells_cut":0,"cells_raw":0,"read":"whole","date_system":"1900"}

{"sheet":"Ark1","index":0,"n_rows":16,"n_cols":12,"rows_kept":16,"cut":false,"hidden":false,"merged":[]}
["Logistik udregning af antal biler:"]
["Tekst","Type PIR/MW","Profil/tykkelse","Antal","Længde","Antal/pk","Pakker i alt ","PK bredde","PK højde","PK længde","PK/BIL","Antal biler"]
[null,"PIR",null,0,0,26,{"$f":"SUM(D3/F3)","v":0},2,{"$f":"IF(B3=\"MW\",3,2)","v":2},{"$f":"IF(E3<0,\"\",IF(E3<3300,4,IF(E3<4400,3,IF(E3<6600,2,IF(E3>=6600,1,\"\")))))","v":4},{"$f":"SUM(H3*I3*J3)","v":16},{"$f":"SUM(G3/K3)","v":0}]
[null,"PIR",null,0,0,26,{"$f":"SUM(D4/F4)","v":0},2,{"$f":"IF(B4=\"MW\",3,2)","v":2},{"$f":"IF(E4<0,\"\",IF(E4<3300,4,IF(E4<4400,3,IF(E4<6600,2,IF(E4>=6600,1,\"\")))))","v":4},{"$f":"SUM(H4*I4*J4)","v":16},{"$f":"SUM(G4/K4)","v":0}]
[null,"PIR",null,0,0,26,0,2,2,4,16,0]
[null,"PIR",null,0,0,26,0,2,2,4,16,0]
[null,"PIR",null,0,0,26,0,2,2,4,16,0]
[null,"PIR",null,0,0,26,0,2,2,4,16,0]
[null,"PIR",null,0,0,26,0,2,2,4,16,0]
[null,"PIR",null,0,0,26,0,2,2,4,16,0]
[null,"PIR",null,0,0,26,0,2,2,4,16,0]
[null,"PIR",null,0,0,26,0,2,2,4,16,0]
[null,"PIR",null,0,0,26,0,2,2,4,16,0]
["Kantdele og åse",null,null,0]
[null,null,null,null,null,"Total antal biler",null,null,null,null,null,{"$f":"SUM(L3:L14)","v":0}]
[null,null,null,null,null,"Oprundet til hele biler ",null,null,null,null,null,{"$f":"ROUNDUP(L15,0)","v":0}]

{"sheet":"Ark2","index":1,"n_rows":33,"n_cols":16,"rows_kept":33,"cut":false,"hidden":false,"merged":[]}
["PIR/MW",null,"PIR.VALG","Antal/pk",null,null,"MW.VALG","Antal/pk",null,null,"MW paneler"]
["PIR",null,"40mm PIR wall",26,null,null,"40mm MW wall",17,null,null,"Facadepaneler ",null,null,"Tagpaneler"]
["MW",null,"60mm PIR wall",17,null,null,"50mm MW wall",14,null,null,"Panel type","Stk/pakke",null,"Panel type","Normal/pack","Crown stacked"]
[null,null,"80mm PIR wall",13,null,null,"60mm MW wall",12,null,null,"40mm MW wall",17,null,"50mm MW Roof",10,8]
[null,null,"100mm PIR wall",10,null,null,"80mm MW wall",9,null,null,"50mm MW wall",14,null,"60mm MW Roof",9,7]
[null,null,"120mm PIR wall",8,null,null,"100mm MW wall",7,null,null,"60mm MW wall",12,null,"80mm MW Roof",7,6]
[null,null,"150mm PIR wall",7,null,null,"120mm MW wall",6,null,null,"80mm MW wall",9,null,"100mm MW Roof ",6,5]
[null,null,"170mm PIR wall",6,null,null,"140mm MW wall",5,null,null,"100mm MW wall",7,null,"120mm MW Roof",5,4]
[null,null,"200mm PIR wall",5,null,null,"150mm MW wall",4,null,null,"120mm MW wall",6,null,"140mm MW Roof",4,4]
[null,null,"220mm PIR wall",4,null,null,"160mm MW wall",4,null,null,"140mm MW wall",5,null,"160mm MW Roof",4,3]
[null,null,"40mm PIR Roof",13,null,null,"180mm MW wall",4,null,null,"150mm MW wall",4,null,"180mm MW Roof",3,3]
[null,null,"60mm PIR Roof",10,null,null,"200mm MW wall",3,null,null,"160mm MW wall",4,null,"200mm MW Roof",3,3]
[null,null,"80mm PIR Roof",9,null,null,"220mm MW wall",3,null,null,"180mm MW wall",4]
[null,null,"100mm PIR Roof ",7,null,null,"240mm MW wall",3,null,null,"200mm MW wall",3]
[null,null,"120mm PIR Roof",6,null,null,"50mm MW Roof",8,null,null,"220mm MW wall",3]
[null,null,"150mm PIR Roof",5,null,null,"60mm MW Roof",7,null,null,"240mm MW wall",3]
[null,null,null,null,null,null,"80mm MW Roof",6]
[null,null,null,null,null,null,"100mm MW Roof ",5,null,null,"Der kan stå 3 pakker i højden på en alm bil "]
[null,null,null,null,null,null,"120mm MW Roof",4]
[null,null,null,null,null,null,"140mm MW Roof",4,null,null,"PIR paneler"]
[null,null,null,null,null,null,"160mm MW Roof",3,null,null,"Facadepaneler ",null,null,"Tagpaneler"]
[null,null,null,null,null,null,"180mm MW Roof",3,null,null,"Panel type","Stk/pakke",null,"Panel type","Normal/pack","Crown stacked"]
[null,null,null,null,null,null,"200mm MW Roof",3,null,null,"40mm PIR wall",26,null,"40mm PIR Roof",17,13]
[null,null,null,null,null,null,null,null,null,null,"60mm PIR wall",17,null,"60mm PIR Roof",13,10]
[null,null,null,null,null,null,null,null,null,null,"80mm PIR wall",13,null,"80mm PIR Roof",10,9]
[null,null,null,null,null,null,null,null,null,null,"100mm PIR wall",10,null,"100mm PIR Roof ",8,7]
[null,null,null,null,null,null,null,null,null,null,"120mm PIR wall",8,null,"120mm PIR Roof",7,6]
[null,null,null,null,null,null,null,null,null,null,"150mm PIR wall",7,null,"150mm PIR Roof",6,5]
[null,null,null,null,null,null,null,null,null,null,"170mm PIR wall",6]
[null,null,null,null,null,null,null,null,null,null,"200mm PIR wall",5]
[null,null,null,null,null,null,null,null,null,null,"220mm PIR wall",4]
[]
[null,null,null,null,null,null,null,null,null,null,"Der kan stå 2 pakker i højden på en alm bil "]